{"text_format":"3","workbook":"xlsx","n_sheets":26,"sheets":["Pradžia","1","2","3","4","5","6","7","8","9","10","11","12","13","14","15","16","17","18","19","20","21","22","23","24","Sužinokite daugiau"],"not_rendered":{"images":24,"defined_names":5,"pivot_tables":19},"read":"whole","date_system":"1900"}

{"sheet":"Pradžia","index":0,"n_rows":5,"n_cols":1,"rows_kept":5}
["Pasveikinimas\nEkrano skaitytuvų instrukcijos: Išnaudokite dar daugiau „PivotTable“ galimybių. Paprasta „PivotTable“ suteikia bendrą duomenų suvestinę, tačiau kartais gali reikėti išsamių atsakymų į konkrečius klausimus. Tokiu atveju gali būti labai naudinga įtraukti daugiau stulpelio laukų ir eilutės laukų. \nInstrukcijas nurodo į kuriuos langelius reikia pereiti norint naudoti funkciją arba norint skaityti papildomą medžiagą.\nNorėdami pradėti, paspauskite CTRL + PAGE DOWN."]
["Išnaudokite dar daugiau \n„PivotTable“ galimybių"]
["Paprasta „PivotTable“ suteikia bendrą duomenų suvestinę,tačiau \nkartais gali reikėti išsamių atsakymų į konkrečius klausimus.Tokiu atveju \ngali būti labai naudinga įtraukti daugiau stulpelio laukų ir eilutės laukų."]
["NAUDINGA ŽINOTI\nAr peržiūrėjote pirmąją mokymo priemonę? Jei ne, atidarykite Failas > Naujas ir raskite Sukurkite savo pirmąją „PivotTable“."]
["Grįžkite į viršų paspaudę CTRL + HOME. Norėdami pradėti apžvalgą, paspauskite CTRL + PAGE DOWN."]

{"sheet":"1","index":1,"n_rows":16,"n_cols":9,"rows_kept":16}
["Pirmoje mokymo priemonėje jus supažindinome su „PivotTable“ koncepcija. Taip pat paaiškinome, kaip galima panaudoti eilutės lauką kaip sąlygą, kuri išskaido reikšmės lauką.   "]
["Langeliuose nuo H10 iki I14 yra „PivotTable“, kuri apibendrina langeliuose nuo B8 iki E16 esančius duomenis. „PivotTable“ turi du stulpelius: Pirkėjas ir Suma iš Suma. Stulpelyje Pirkėjas yra reikšmės Tėtis, Mama, Kotryna ir Bendroji suma. Stulpelyje Suma iš Suma pateikiamos reikšmės 220 EUR, 270 EUR, 810 EUR ir 1 300 EUR. Stulpelis Pirkėjas sudarytas iš eilutės lauko, o stulpelis Suma iš Suma sudaryta iš reikšmės lauko."]
["Norėdami toliau naudoti šią mokymo priemonę, paspauskite CTRL + PAGE DOWN. Norėdami pereiti į ankstesnį lapą, paspauskite CTRL + PAGE UP."]
[]
[]
[]
[]
[null,"Data","Pirkėjas","Tipas","Suma"]
["Šiame pavyzdyje rodoma, kaip eilutės laukas...","2017-01-01","Tėtis","Dovanos",{"v":95,"d":"95 EUR"}]
["...išskaido reikšmės lauką.","2017-01-15","Mama","Maistas",{"v":325,"d":"325 EUR"},null,null,"Pirkėjas","Suma iš Suma"]
[null,"2017-01-17","Mama","Bilietai",{"v":250,"d":"250 EUR"},null,null,"Tėtis",{"v":220,"d":"220 EUR"}]
[null,"2017-01-21","Tėtis","Maistas",{"v":125,"d":"125 EUR"},null,null,"Kotryna",{"v":270,"d":"270 EUR"}]
[null,"2017-02-02","Mama","Maistas",{"v":235,"d":"235 EUR"},null,null,"Mama",{"v":810,"d":"810 EUR"}]
[null,"2017-02-20","Kotryna","Muzika",{"v":20,"d":"20 EUR"},null,null,"Bendroji suma",{"v":1300,"d":"1,300 EUR"}]
[null,"2017-02-25","Kotryna","Bilietai",{"v":125,"d":"125 EUR"}]
[null,"2017-02-25","Kotryna","Sportas",{"v":125,"d":"125 EUR"}]

{"sheet":"2","index":2,"n_rows":108,"n_cols":7,"rows_kept":108}
["Pirmą kartą pažvelgę į „PivotTable“, galite pasigesti išsamumo."]
["Pirmą kartą pažvelgus į „PivotTable“, jums gali kilti klausimai, pvz., „Kada atlikti šie pirkimai?“, „Kam pinigus išleido konkretus asmuo?“, „Ką pirko mama, kad išleido tiek daug?“."]
["Šiame pavyzdyje langeliuose nuo F11 iki G15 yra ta pati „PivotTable“, kaip ir anksčiau. Stulpelis Pirkėjas yra eilutės laukas ir jame yra reikšmės Tėtis, Mama, Kotryna ir Bendroji suma. Stulpelis Suma iš Suma yra reikšmės laukas ir jame pateikiamos reikšmės 220 EUR, 270 EUR, 810 EUR ir 1 300 EUR. "]
["Norėdami toliau naudoti šią mokymo priemonę, paspauskite CTRL + PAGE DOWN. Norėdami pereiti į ankstesnį lapą, paspauskite CTRL + PAGE UP."]
[]
[]
[]
[]
[]
[]
[{"$nulls":5},"Pirkėjas","Suma iš Suma"]
[{"$nulls":5},"Tėtis",{"v":220,"d":"220 EUR"}]
[{"$nulls":5},"Kotryna",{"v":270,"d":"270 EUR"}]
[{"$nulls":5},"Mama",{"v":810,"d":"810 EUR"}]
[{"$nulls":5},"Bendroji suma",{"v":1300,"d":"1,300 EUR"}]
{"$rows_empty":84}
[null,"Data","Pirkėjas","Tipas","Suma"]
[null,"2017-01-01","Tėtis","Dovanos",{"v":95,"d":"95 EUR"}]
[null,"2017-01-15","Mama","Maistas",{"v":325,"d":"325 EUR"}]
[null,"2017-01-17","Mama","Bilietai",{"v":250,"d":"250 EUR"}]
[null,"2017-01-21","Tėtis","Maistas",{"v":125,"d":"125 EUR"}]
[null,"2017-02-02","Mama","Maistas",{"v":235,"d":"235 EUR"}]
[null,"2017-02-20","Kotryna","Muzika",{"v":20,"d":"20 EUR"}]
[null,"2017-02-25","Kotryna","Bilietai",{"v":125,"d":"125 EUR"}]
[null,"2017-02-25","Kotryna","Sportas",{"v":125,"d":"125 EUR"}]

{"sheet":"3","index":3,"n_rows":108,"n_cols":7,"rows_kept":108}
["Tai yra geri klausimai, tačiau šiuo metu apsiribokime tik vienu klausimu."]
["Kam pinigus išleido konkretus asmuo?"]
["Langeliuose nuo F11 iki G15 yra ta pati „PivotTable“, kaip ir anksčiau. Stulpelis Pirkėjas yra eilutės laukas ir jame yra reikšmės Tėtis, Mama, Kotryna ir Bendroji suma. Stulpelis Suma iš Suma yra reikšmės laukas ir jame pateikiamos reikšmės 220 EUR, 270 EUR, 810 EUR ir 1 300 EUR. "]
["Norėdami toliau naudoti šią mokymo priemonę, paspauskite CTRL + PAGE DOWN. Norėdami pereiti į ankstesnį lapą, paspauskite CTRL + PAGE UP."]
[]
[]
[]
[]
[]
[]
[{"$nulls":5},"Pirkėjas","Suma iš Suma"]
[{"$nulls":5},"Tėtis",{"v":220,"d":"220 EUR"}]
[{"$nulls":5},"Kotryna",{"v":270,"d":"270 EUR"}]
[{"$nulls":5},"Mama",{"v":810,"d":"810 EUR"}]
[{"$nulls":5},"Bendroji suma",{"v":1300,"d":"1,300 EUR"}]
{"$rows_empty":84}
[null,"Data","Pirkėjas","Tipas","Suma"]
[null,"2017-01-01","Tėtis","Dovanos",{"v":95,"d":"95 EUR"}]
[null,"2017-01-15","Mama","Maistas",{"v":325,"d":"325 EUR"}]
[null,"2017-01-17","Mama","Bilietai",{"v":250,"d":"250 EUR"}]
[null,"2017-01-21","Tėtis","Maistas",{"v":125,"d":"125 EUR"}]
[null,"2017-02-02","Mama","Maistas",{"v":235,"d":"235 EUR"}]
[null,"2017-02-20","Kotryna","Muzika",{"v":20,"d":"20 EUR"}]
[null,"2017-02-25","Kotryna","Bilietai",{"v":125,"d":"125 EUR"}]
[null,"2017-02-25","Kotryna","Sportas",{"v":125,"d":"125 EUR"}]

{"sheet":"4","index":4,"n_rows":108,"n_cols":9,"rows_kept":108}
["Paskutinis mūsų užduotas klausimas buvo „Kam pinigus išleido konkretus asmuo?“."]
["Į šį klausimą atsakėme įtraukdami Tipo stulpelio lauką. Todėl dabar „PivotTable“ turi penkis naujus stulpelius, kurie mums parodo kiekvieno asmens atlikto pirkimo tipą. "]
["Mūsų naujoji „PivotTable“ dabar tęsiasi nuo C10 iki I15 langelio; joje yra stulpeliai Pirkėjas, Maistas, Muzika, Sportas, Bilietai, Dovanos ir Bendroji suma. Stulpeliai Pirkėjas ir Bendroji suma yra tokie patys kaip anksčiau, o nauji stulpeliai su tikslesne informacija yra tarp jų."]
["Norėdami toliau naudoti šią mokymo priemonę, paspauskite CTRL + PAGE DOWN. Norėdami pereiti į ankstesnį lapą, paspauskite CTRL + PAGE UP."]
[]
[]
[]
[]
[]
[null,null,"Suma iš Suma","Tipas"]
[null,null,"Pirkėjas","Maistas","Muzika","Sportas","Bilietai","Dovanos","Bendroji suma"]
[null,null,"Tėtis",{"v":125,"d":"125 EUR"},{"$nulls":3},{"v":95,"d":"95 EUR"},{"v":220,"d":"220 EUR"}]
[null,null,"Kotryna",null,{"v":20,"d":"20 EUR"},{"v":125,"d":"125 EUR"},{"v":125,"d":"125 EUR"},null,{"v":270,"d":"270 EUR"}]
[null,null,"Mama",{"v":560,"d":"560 EUR"},null,null,{"v":250,"d":"250 EUR"},null,{"v":810,"d":"810 EUR"}]
[null,null,"Bendroji suma",{"v":685,"d":"685 EUR"},{"v":20,"d":"20 EUR"},{"v":125,"d":"125 EUR"},{"v":375,"d":"375 EUR"},{"v":95,"d":"95 EUR"},{"v":1300,"d":"1,300 EUR"}]
{"$rows_empty":84}
[null,"Data","Pirkėjas","Tipas","Suma"]
[null,"2017-01-01","Tėtis","Dovanos",{"v":95,"d":"95 EUR"}]
[null,"2017-01-15","Mama","Maistas",{"v":325,"d":"325 EUR"}]
[null,"2017-01-17","Mama","Bilietai",{"v":250,"d":"250 EUR"}]
[null,"2017-01-21","Tėtis","Maistas",{"v":125,"d":"125 EUR"}]
[null,"2017-02-02","Mama","Maistas",{"v":235,"d":"235 EUR"}]
[null,"2017-02-20","Kotryna","Muzika",{"v":20,"d":"20 EUR"}]
[null,"2017-02-25","Kotryna","Bilietai",{"v":125,"d":"125 EUR"}]
[null,"2017-02-25","Kotryna","Sportas",{"v":125,"d":"125 EUR"}]

{"sheet":"5","index":5,"n_rows":108,"n_cols":9,"rows_kept":108}
["Jei sunku suprasti „PivotTable“, pabandykite tai: Skaitykite iš kairės, tada iš viršaus, o tada – žemyn. Tolesniame pavyzdyje Tėtis yra C12 langelyje, Maistas už 125 EUR yra D12 langelyje, Dovanos už 95 EUR yra E12 langelyje, o Bendroji suma 220 EUR – I12 langelyje. 13 ir 14 eilutėse pateikiama Kotryna ir mama informacija, o 15 eilutėje yra Bendroji suma."]
["Norėdami toliau naudoti šią mokymo priemonę, paspauskite CTRL + PAGE DOWN. Norėdami pereiti į ankstesnį lapą, paspauskite CTRL + PAGE UP."]
{"$rows_empty":7}
[null,null,"Suma iš Suma","Tipas"]
[null,null,"Pirkėjas","Maistas","Dovanos","Muzika","Sportas","Bilietai","Bendroji suma"]
[null,null,"Tėtis",{"v":125,"d":"125 EUR"},{"v":95,"d":"95 EUR"},{"$nulls":3},{"v":220,"d":"220 EUR"}]
[null,null,"Kotryna",null,null,{"v":20,"d":"20 EUR"},{"v":125,"d":"125 EUR"},{"v":125,"d":"125 EUR"},{"v":270,"d":"270 EUR"}]
[null,null,"Mama",{"v":560,"d":"560 EUR"},{"$nulls":3},{"v":250,"d":"250 EUR"},{"v":810,"d":"810 EUR"}]
[null,null,"Bendroji suma",{"v":685,"d":"685 EUR"},{"v":95,"d":"95 EUR"},{"v":20,"d":"20 EUR"},{"v":125,"d":"125 EUR"},{"v":375,"d":"375 EUR"},{"v":1300,"d":"1,300 EUR"}]
{"$rows_empty":84}
[null,"Data","Pirkėjas","Tipas","Suma"]
[null,"2017-01-01","Tėtis","Dovanos",{"v":95,"d":"95 EUR"}]
[null,"2017-01-15","Mama","Maistas",{"v":325,"d":"325 EUR"}]
[null,"2017-01-17","Mama","Bilietai",{"v":250,"d":"250 EUR"}]
[null,"2017-01-21","Tėtis","Maistas",{"v":125,"d":"125 EUR"}]
[null,"2017-02-02","Mama","Maistas",{"v":235,"d":"235 EUR"}]
[null,"2017-02-20","Kotryna","Muzika",{"v":20,"d":"20 EUR"}]
[null,"2017-02-25","Kotryna","Bilietai",{"v":125,"d":"125 EUR"}]
[null,"2017-02-25","Kotryna","Sportas",{"v":125,"d":"125 EUR"}]

{"sheet":"6","index":6,"n_rows":3,"n_cols":1,"rows_kept":3}
["Dabar to nedarykite, bet po kelių veiksmų galėsite dirbti su „PivotTable“. Pirmiausia reikės pateikti išsamesnės informacijos stulpelio lauke. Tai padarysite įtraukdami lauką Tipas į stulpelio laukų sritį."]
["„PivotTable“ laukų sąrašo paveikslėlyje pavaizduota rodyklė, kaip žymikliu nuvelkamas laukas Tipas į sritį Stulpeliai."]
["Norėdami toliau naudoti šią mokymo priemonę, paspauskite CTRL + PAGE DOWN. Norėdami pereiti į ankstesnį lapą, paspauskite CTRL + PAGE UP."]

{"sheet":"7","index":7,"n_rows":108,"n_cols":8,"rows_kept":108}
["1. Šiame pavyzdyje „PivotTable“ sritis yra langeliuose nuo B13 iki C17. Eikite į bet kurį iš šių langelių."]
["2. Paspauskite ALT + JT, L2, kad paleistumėte „PivotTable“ laukų sąrašą. Įvesties vieta bus ieškoti teksto lauke: „Ieškoti“ redagavimas"]
["3. Norėdami pasirinkti lauką Tipas, spauskite rodyklių klavišus. Jį pasirinkę, paspauskite TARPO KLAVIŠĄ, kad įtrauktumėte lauką Tipas į sritį Eilutės. "]
["4. Paspauskite klavišą „Tab“, kad pasirinktumėte lauką Tipas. Paspauskite klavišą „Enter“, tada paspauskite rodyklių klavišus, kad pasirinktumėte Perkelti į stulpelių žymas, ir paspauskite „Enter“, kad įtrauktumėte lauką Tipas į sritį Stulpeliai. Paspauskite ALT + JT + L2, kad išeitumėte iš Suvestinės lentelės „PivotTable“ lauai srities."]
["Norėdami toliau naudoti šią mokymo priemonę, paspauskite CTRL + PAGE DOWN. Norėdami pereiti į ankstesnį lapą, paspauskite CTRL + PAGE UP."]
[]
[]
[]
[{"$nulls":7},{"$f":"IF(AND($B$14=\"Pirkėjas\",$H$17=810),\"Šaunu!! Įtraukėte savo\",\" \")","v":" "}]
[{"$nulls":7},{"$f":"IF(AND($B$14=\"Pirkėjas\",$H$17=810),\"pirmą stulpelio lauką Norėdami\",\" \")","v":" "}]
[{"$nulls":7},{"$f":"IF(AND($B$14=\"Pirkėjas\",$H$17=810),\"tęsti, spustelėkite Pirmyn\",\" \")","v":" "}]
[]
[null,"Pirkėjas","Suma iš Suma"]
[null,"Tėtis",{"v":220,"d":"220 EUR"}]
[null,"Kotryna",{"v":270,"d":"270 EUR"}]
[null,"Mama",{"v":810,"d":"810 EUR"}]
[null,"Bendroji suma",{"v":1300,"d":"1,300 EUR"}]
{"$rows_empty":82}
[null,"Data","Pirkėjas","Tipas","Suma"]
[null,"2017-01-01","Tėtis","Dovanos",{"v":95,"d":"95 EUR"}]
[null,"2017-01-15","Mama","Maistas",{"v":325,"d":"325 EUR"}]
[null,"2017-01-17","Mama","Bilietai",{"v":250,"d":"250 EUR"}]
[null,"2017-01-21","Tėtis","Maistas",{"v":125,"d":"125 EUR"}]
[null,"2017-02-02","Mama","Maistas",{"v":235,"d":"235 EUR"}]
[null,"2017-02-20","Kotryna","Muzika",{"v":20,"d":"20 EUR"}]
[null,"2017-02-25","Kotryna","Bilietai",{"v":125,"d":"125 EUR"}]
[null,"2017-02-25","Kotryna","Sportas",{"v":125,"d":"125 EUR"}]

{"sheet":"8","index":8,"n_rows":108,"n_cols":9,"rows_kept":108}
["Peržiūrėkime ką tik sukurtą „PivotTable“, bet šį kartą įtraukėme keletą specialių spalvų, padedančių atskirti eilutės, stulpelio ir reikšmės laukus."]
["Eilutės laukas yra nuo C10 iki C13 langelio; jis nuspalvintas geltonai."]
["Stulpelio laukas yra nuo D9 iki H10 langelio; jis nuspalvintas oranžine spalva."]
["Reikšmės laukas yra nuo D11 iki H13 langelio; jis nuspalvintas mėlynai."]
["Norėdami toliau naudoti šią mokymo priemonę, paspauskite CTRL + PAGE DOWN. Norėdami pereiti į ankstesnį lapą, paspauskite CTRL + PAGE UP."]
[]
[]
[]
[null,null,"Suma iš Suma","Tipas"]
[null,null,"Pirkėjas","Maistas","Dovanos","Muzika","Sportas","Bilietai","Bendroji suma"]
[null,null,"Tėtis",{"v":125,"d":"125 EUR"},{"v":95,"d":"95 EUR"},{"$nulls":3},{"v":220,"d":"220 EUR"}]
[null,null,"Kotryna",null,null,{"v":20,"d":"20 EUR"},{"v":125,"d":"125 EUR"},{"v":125,"d":"125 EUR"},{"v":270,"d":"270 EUR"}]
[null,null,"Mama",{"v":560,"d":"560 EUR"},{"$nulls":3},{"v":250,"d":"250 EUR"},{"v":810,"d":"810 EUR"}]
[null,null,"Bendroji suma",{"v":685,"d":"685 EUR"},{"v":95,"d":"95 EUR"},{"v":20,"d":"20 EUR"},{"v":125,"d":"125 EUR"},{"v":375,"d":"375 EUR"},{"v":1300,"d":"1,300 EUR"}]
{"$rows_empty":85}
[null,"Data","Pirkėjas","Tipas","Suma"]
[null,"2017-01-01","Tėtis","Dovanos",{"v":95,"d":"95 EUR"}]
[null,"2017-01-15","Mama","Maistas",{"v":325,"d":"325 EUR"}]
[null,"2017-01-17","Mama","Bilietai",{"v":250,"d":"250 EUR"}]
[null,"2017-01-21","Tėtis","Maistas",{"v":125,"d":"125 EUR"}]
[null,"2017-02-02","Mama","Maistas",{"v":235,"d":"235 EUR"}]
[null,"2017-02-20","Kotryna","Muzika",{"v":20,"d":"20 EUR"}]
[null,"2017-02-25","Kotryna","Bilietai",{"v":125,"d":"125 EUR"}]
[null,"2017-02-25","Kotryna","Sportas",{"v":125,"d":"125 EUR"}]

{"sheet":"9","index":9,"n_rows":3,"n_cols":1,"rows_kept":3}
["Tai galima suprasti ir taip: eilutės laukas yra kairėje, o stulpelio laukas – viršuje. Kiekvienas iš jų suteikia sąlygą reikšmės laukui, kuris jas apibendrina."]
["Koncepcinėje diagramoje rodoma 4 dalių stačiakampė sritis: geltonai pažymėtas eilutės laukas yra apačioje kairėje, oranžine spalva pažymėtas stulpelio laukas yra viršuje dešinėje, o apačioje dešinėje yra mėlyna spalva pažymėtas reikšmių laukas."]
["Norėdami toliau naudoti šią mokymo priemonę, paspauskite CTRL + PAGE DOWN. Norėdami pereiti į ankstesnį lapą, paspauskite CTRL + PAGE UP."]

{"sheet":"10","index":10,"n_rows":3,"n_cols":1,"rows_kept":3}
["Kurdami laukų sąrašą, galvokite taip: eilutės laukas yra kairėje, o stulpelio laukas – viršuje. Kiekvienas iš jų suteikia sąlygą reikšmės laukui, kuris jas apibendrina."]
["Koncepcinėje diagramoje rodomas „PivotTable“ laukų sąrašas: geltonai pažymėtas eilutės laukas yra apačioje kairėje, oranžine spalva pažymėtas stulpelio laukas yra viršuje dešinėje, o apačioje dešinėje yra mėlyna spalva pažymėtas reikšmės laukas."]
["Norėdami toliau naudoti šią mokymo priemonę, paspauskite CTRL + PAGE DOWN. Norėdami pereiti į ankstesnį lapą, paspauskite CTRL + PAGE UP."]

{"sheet":"11","index":11,"n_rows":121,"n_cols":24,"rows_kept":121}
["Reikėtų atsiminti vieną dalyką: Jei stulpelio laukas į įtraukia daug stulpelių „PivotTable“, ji bus labai plati. "]
["Šiame pavyzdyje „PivotTable“ šiuo metu tęsiasi nuo C10 iki X15 langelio, nes stulpelio laukas įtraukė 20 naujų stulpelių. Tai daugybė stulpelių! Žmonėms tektų pernelyg daug slinkti..."]
["Norėdami toliau naudoti šią mokymo priemonę, paspauskite CTRL + PAGE DOWN. Norėdami pereiti į ankstesnį lapą, paspauskite CTRL + PAGE UP."]
[]
[]
[]
[]
[]
[]
[null,null,"Suma iš Suma","Tipas"]
[null,null,"Pirkėjas","Muzikos pamokos","Maistas","Automobilio draudimas","Muzika","Sportas","Bilietai","Parkavimas","Elektra","Degalai","Dantų priežiūra","Lėktuvo bilieto kaina","Medicininės išlaidos","Restoranai","Drabužiai","Mokesčiai","Elektroniniai prietaisai","Knygos","Klubo mokesčiai","Sveikatos draudimas","Būsto draudimas","Bendroji suma"]
[null,null,"Tėtis",{"$nulls":4},{"v":1000,"d":"1,000 EUR"},{"$nulls":5},{"v":500,"d":"500 EUR"},{"$nulls":3},{"v":500,"d":"500 EUR"},{"$nulls":5},{"v":2000,"d":"2,000 EUR"}]
[null,null,"Kotryna",{"v":250,"d":"250 EUR"},null,null,{"v":20,"d":"20 EUR"},null,{"v":125,"d":"125 EUR"},{"v":20,"d":"20 EUR"},{"$nulls":5},{"v":20,"d":"20 EUR"},{"v":125,"d":"125 EUR"},null,{"v":125,"d":"125 EUR"},{"v":250,"d":"250 EUR"},{"$nulls":3},{"v":935,"d":"935 EUR"}]
[null,null,"Mama",null,{"v":470,"d":"470 EUR"},{"v":74,"d":"74 EUR"},{"$nulls":4},{"v":70,"d":"70 EUR"},{"v":74,"d":"74 EUR"},{"v":235,"d":"235 EUR"},null,{"v":74,"d":"74 EUR"},{"$nulls":5},{"v":125,"d":"125 EUR"},{"v":70,"d":"70 EUR"},{"v":235,"d":"235 EUR"},{"v":1427,"d":"1,427 EUR"}]
[null,null,"Bendroji suma",{"v":250,"d":"250 EUR"},{"v":470,"d":"470 EUR"},{"v":74,"d":"74 EUR"},{"v":20,"d":"20 EUR"},{"v":1000,"d":"1,000 EUR"},{"v":125,"d":"125 EUR"},{"v":20,"d":"20 EUR"},{"v":70,"d":"70 EUR"},{"v":74,"d":"74 EUR"},{"v":235,"d":"235 EUR"},{"v":500,"d":"500 EUR"},{"v":74,"d":"74 EUR"},{"v":20,"d":"20 EUR"},{"v":125,"d":"125 EUR"},{"v":500,"d":"500 EUR"},{"v":125,"d":"125 EUR"},{"v":250,"d":"250 EUR"},{"v":125,"d":"125 EUR"},{"v":70,"d":"70 EUR"},{"v":235,"d":"235 EUR"},{"v":4362,"d":"4,362 EUR"}]
{"$rows_empty":84}
[null,"Data","Pirkėjas","Tipas","Suma"]
[null,"2017-01-17","Tėtis","Sportas",{"v":1000,"d":"1,000 EUR"}]
[null,"2017-01-17","Tėtis","Lėktuvo bilieto kaina",{"v":500,"d":"500 EUR"}]
[null,"2017-01-17","Tėtis","Mokesčiai",{"v":500,"d":"500 EUR"}]
[null,"2017-02-20","Kotryna","Muzika",{"v":20,"d":"20 EUR"}]
[null,"2017-02-25","Kotryna","Bilietai",{"v":125,"d":"125 EUR"}]
[null,"2017-01-21","Kotryna","Knygos",{"v":250,"d":"250 EUR"}]
[null,"2017-02-20","Kotryna","Restoranai",{"v":20,"d":"20 EUR"}]
[null,"2017-02-25","Kotryna","Drabužiai",{"v":125,"d":"125 EUR"}]
[null,"2017-01-21","Kotryna","Muzikos pamokos",{"v":250,"d":"250 EUR"}]
[null,"2017-02-20","Kotryna","Parkavimas",{"v":20,"d":"20 EUR"}]
[null,"2017-02-25","Kotryna","Elektroniniai prietaisai",{"v":125,"d":"125 EUR"}]
[null,"2017-01-01","Mama","Degalai",{"v":74,"d":"74 EUR"}]
[null,"2017-01-15","Mama","Maistas",{"v":235,"d":"235 EUR"}]
[null,"2017-01-21","Mama","Klubo mokesčiai",{"v":125,"d":"125 EUR"}]
[null,"2017-02-02","Mama","Maistas",{"v":235,"d":"235 EUR"}]
[null,"2017-01-01","Mama","Medicininės išlaidos",{"v":74,"d":"74 EUR"}]
[null,"2017-01-15","Mama","Elektra",{"v":70,"d":"70 EUR"}]
[null,"2017-02-02","Mama","Dantų priežiūra",{"v":235,"d":"235 EUR"}]
[null,"2017-01-01","Mama","Automobilio draudimas",{"v":74,"d":"74 EUR"}]
[null,"2017-01-15","Mama","Sveikatos draudimas",{"v":70,"d":"70 EUR"}]
[null,"2017-02-02","Mama","Būsto draudimas",{"v":235,"d":"235 EUR"}]

{"sheet":"12","index":12,"n_rows":119,"n_cols":5,"rows_kept":119}
["Yra alternatyva labai plačioms „PivotTable“: vietoj to galite naudoti antrasis eilutės laukas . Antrasis eilutės laukas bus rodomas įtrauktas po pirmuoju eilutės lauku."]
["Šiame pavyzdyje nuo D8 iki E32 langelio yra „PivotTable“. Joje pateikiama Tėtis, Kotryna ir Mama kaip pirmieji eilutės laukai D stulpelyje. Po jų kaip antrieji eilutės laukai yra išlaidų tipų elementai, pvz., sportas, lėktuvo bilietai, restoranai ir t. t."]
["NAUDINGA ŽINOTI\nAntrasis eilutės laukas sukuria horizontaliai orientuotą „PivotTable“, o ne stačiai. Kai kuriems žmonėms paprasčiau skaityti vertikalias „PivotTable“, nes nereikia tiek daug slinkti iš vienos pusės į kitą."]
["„EXCEL“ KALBA\nKartais antrasis eilutės laukas vadinamas antriniu eilutės lauku."]
["Norėdami toliau naudoti šią mokymo priemonę, paspauskite CTRL + PAGE DOWN. Norėdami pereiti į ankstesnį lapą, paspauskite CTRL + PAGE UP."]
[]
[]
[{"$nulls":3},"Eilučių žymos","Suma iš Suma"]
[{"$nulls":3},"Tėtis",{"v":2000,"d":"2,000 EUR"}]
[{"$nulls":3},"Sportas",{"v":1000,"d":"1,000 EUR"}]
[{"$nulls":3},"Mokesčiai",{"v":500,"d":"500 EUR"}]
[{"$nulls":3},"Lėktuvo bilieto kaina",{"v":500,"d":"500 EUR"}]
[{"$nulls":3},"Kotryna",{"v":935,"d":"935 EUR"}]
[{"$nulls":3},"Bilietai",{"v":125,"d":"125 EUR"}]
[{"$nulls":3},"Drabužiai",{"v":125,"d":"125 EUR"}]
[{"$nulls":3},"Elektroniniai prietaisai",{"v":125,"d":"125 EUR"}]
[{"$nulls":3},"Knygos",{"v":250,"d":"250 EUR"}]
[{"$nulls":3},"Muzika",{"v":20,"d":"20 EUR"}]
[{"$nulls":3},"Muzikos pamokos",{"v":250,"d":"250 EUR"}]
[{"$nulls":3},"Parkavimas",{"v":20,"d":"20 EUR"}]
[{"$nulls":3},"Restoranai",{"v":20,"d":"20 EUR"}]
[{"$nulls":3},"Mama",{"v":1427,"d":"1,427 EUR"}]
[{"$nulls":3},"Automobilio draudimas",{"v":74,"d":"74 EUR"}]
[{"$nulls":3},"Būsto draudimas",{"v":235,"d":"235 EUR"}]
[{"$nulls":3},"Dantų priežiūra",{"v":235,"d":"235 EUR"}]
[{"$nulls":3},"Degalai",{"v":74,"d":"74 EUR"}]
[{"$nulls":3},"Elektra",{"v":70,"d":"70 EUR"}]
[{"$nulls":3},"Klubo mokesčiai",{"v":125,"d":"125 EUR"}]
[{"$nulls":3},"Maistas",{"v":470,"d":"470 EUR"}]
[{"$nulls":3},"Medicininės išlaidos",{"v":74,"d":"74 EUR"}]
[{"$nulls":3},"Sveikatos draudimas",{"v":70,"d":"70 EUR"}]
[{"$nulls":3},"Bendroji suma",{"v":4362,"d":"4,362 EUR"}]
{"$rows_empty":65}
[null,"Data","Pirkėjas","Tipas","Suma"]
[null,"2017-01-17","Tėtis","Sportas",{"v":1000,"d":"1,000 EUR"}]
[null,"2017-01-17","Tėtis","Lėktuvo bilieto kaina",{"v":500,"d":"500 EUR"}]
[null,"2017-01-17","Tėtis","Mokesčiai",{"v":500,"d":"500 EUR"}]
[null,"2017-02-20","Kotryna","Muzika",{"v":20,"d":"20 EUR"}]
[null,"2017-02-25","Kotryna","Bilietai",{"v":125,"d":"125 EUR"}]
[null,"2017-01-21","Kotryna","Knygos",{"v":250,"d":"250 EUR"}]
[null,"2017-02-20","Kotryna","Restoranai",{"v":20,"d":"20 EUR"}]
[null,"2017-02-25","Kotryna","Drabužiai",{"v":125,"d":"125 EUR"}]
[null,"2017-01-21","Kotryna","Muzikos pamokos",{"v":250,"d":"250 EUR"}]
[null,"2017-02-20","Kotryna","Parkavimas",{"v":20,"d":"20 EUR"}]
[null,"2017-02-25","Kotryna","Elektroniniai prietaisai",{"v":125,"d":"125 EUR"}]
[null,"2017-01-01","Mama","Degalai",{"v":74,"d":"74 EUR"}]
[null,"2017-01-15","Mama","Maistas",{"v":235,"d":"235 EUR"}]
[null,"2017-01-21","Mama","Klubo mokesčiai",{"v":125,"d":"125 EUR"}]
[null,"2017-02-02","Mama","Maistas",{"v":235,"d":"235 EUR"}]
[null,"2017-01-01","Mama","Medicininės išlaidos",{"v":74,"d":"74 EUR"}]
[null,"2017-01-15","Mama","Elektra",{"v":70,"d":"70 EUR"}]
[null,"2017-02-02","Mama","Dantų priežiūra",{"v":235,"d":"235 EUR"}]
[null,"2017-01-01","Mama","Automobilio draudimas",{"v":74,"d":"74 EUR"}]
[null,"2017-01-15","Mama","Sveikatos draudimas",{"v":70,"d":"70 EUR"}]
[null,"2017-02-02","Mama","Būsto draudimas",{"v":235,"d":"235 EUR"}]

{"sheet":"13","index":13,"n_rows":3,"n_cols":1,"rows_kept":3}
["Paskesniame lape įtrauksite antrą eilutės lauką. Tai padarysite įtraukdami lauką Tipas po eilutės lauke esančiu lauku Pirkėjas."]
["„PivotTable“ laukų sąrašo paveikslėlyje pavaizduota rodyklė, kaip žymikliu nuvelkamas laukas Tipas į sritį Eilutės."]
["Norėdami toliau naudoti šią mokymo priemonę, paspauskite CTRL + PAGE DOWN. Norėdami pereiti į ankstesnį lapą, paspauskite CTRL + PAGE UP."]

{"sheet":"14","index":14,"n_rows":122,"n_cols":9,"rows_kept":122}
["1. Šiame pavyzdyje „PivotTable“ sritis yra langeliuose nuo B13 iki C17. Eikite į bet kurį iš šių langelių. "]
["2. Paspauskite ALT + JT, L2, kad paleistumėte „PivotTable“ laukų sąrašą. Įvesties vieta bus ieškos teksto lauke: redaguoti „Įveskite ieškotinus žodžius“. Nieko neveskite, tik vieną kartą paspauskite TAB. PASTABA. Jei nepavyksta paleisti laukų sąrašo, dar kartą paspauskite ALT + JT, L2."]
["3. Norėdami pereiti į lauką Tipas, spauskite rodyklių klavišus. Norėdami į sritį Eilutės įtraukti lauką Tipas, paspauskite TARPO KLAVIŠĄ. "]
["4. Paspauskite klavišą ESC, kad išeitumėte iš „PivotTable“ laukų skydelio. "]
["Norėdami toliau naudoti šią mokymo priemonę, paspauskite CTRL + PAGE DOWN. Norėdami pereiti į ankstesnį lapą, paspauskite CTRL + PAGE UP.",{"$nulls":7},{"$f":"IF(AND($B$15=\"Lėktuvo bilieto kaina\",$C$36=70),\"Jums puikiai sekasi! Į \",\" \")","v":" "}]
[{"$nulls":8},{"$f":"IF(AND($B$15=\"Lėktuvo bilieto kaina\",$C$36=70),\"„PivotTable“  įtraukėte\",\" \")","v":" "}]
[{"$nulls":8},{"$f":"IF(AND($B$15=\"Lėktuvo bilieto kaina\",$C$36=70),\"eilutės lauką. Slinkite  antrą\",\" \")","v":" "}]
[{"$nulls":8},{"$f":"IF(AND($B$15=\"Lėktuvo bilieto kaina\",$C$36=70),\"žemyn ir spustelėkite Pirmyn...\",\" \")","v":" "}]
[]
[]
[]
[]
[null,"Eilučių žymos","Suma iš Suma"]
[null,"Tėtis",{"v":2000,"d":"2,000 EUR"}]
[null,"Kotryna",{"v":935,"d":"935 EUR"}]
[null,"Mama",{"v":1427,"d":"1,427 EUR"}]
[null,"Bendroji suma",{"v":4362,"d":"4,362 EUR"}]
{"$rows_empty":83}
[null,"Data","Pirkėjas","Tipas","Suma"]
[null,"2017-01-17","Tėtis","Sportas",{"v":1000,"d":"1,000 EUR"}]
[null,"2017-01-17","Tėtis","Lėktuvo bilieto kaina",{"v":500,"d":"500 EUR"}]
[null,"2017-01-17","Tėtis","Mokesčiai",{"v":500,"d":"500 EUR"}]
[null,"2017-02-20","Kotryna","Muzika",{"v":20,"d":"20 EUR"}]
[null,"2017-02-25","Kotryna","Bilietai",{"v":125,"d":"125 EUR"}]
[null,"2017-01-21","Kotryna","Knygos",{"v":250,"d":"250 EUR"}]
[null,"2017-02-20","Kotryna","Restoranai",{"v":20,"d":"20 EUR"}]
[null,"2017-02-25","Kotryna","Drabužiai",{"v":125,"d":"125 EUR"}]
[null,"2017-01-21","Kotryna","Muzikos pamokos",{"v":250,"d":"250 EUR"}]
[null,"2017-02-20","Kotryna","Parkavimas",{"v":20,"d":"20 EUR"}]
[null,"2017-02-25","Kotryna","Elektroniniai prietaisai",{"v":125,"d":"125 EUR"}]
[null,"2017-01-01","Mama","Degalai",{"v":74,"d":"74 EUR"}]
[null,"2017-01-15","Mama","Maistas",{"v":235,"d":"235 EUR"}]
[null,"2017-01-21","Mama","Klubo mokesčiai",{"v":125,"d":"125 EUR"}]
[null,"2017-02-02","Mama","Maistas",{"v":235,"d":"235 EUR"}]
[null,"2017-01-01","Mama","Medicininės išlaidos",{"v":74,"d":"74 EUR"}]
[null,"2017-01-15","Mama","Elektra",{"v":70,"d":"70 EUR"}]
[null,"2017-02-02","Mama","Dantų priežiūra",{"v":235,"d":"235 EUR"}]
[null,"2017-01-01","Mama","Automobilio draudimas",{"v":74,"d":"74 EUR"}]
[null,"2017-01-15","Mama","Sveikatos draudimas",{"v":70,"d":"70 EUR"}]
[null,"2017-02-02","Mama","Būsto draudimas",{"v":235,"d":"235 EUR"}]

{"sheet":"15","index":15,"n_rows":121,"n_cols":7,"rows_kept":121}
["Jei norite supaprastinti „PivotTable“, galite į viršų sutraukti antrojo eilutės lauko duomenis ir jų nesimatys. "]
["Šiame pavyzdyje „PivotTable“ yra langeliuose nuo F7 iki G31. Pažymėkite F8 langelį, kad pasirinktumėte pirmąjį Tėčio eilutės lauką. Tada paspauskite „Alt“ + JT > L1, kad išplėstumėte antrąjį lauką, arba S, kad jį sutrauktumėte."]
["Norėdami toliau naudoti šią mokymo priemonę, paspauskite CTRL + PAGE DOWN. Norėdami pereiti į ankstesnį lapą, paspauskite CTRL + PAGE UP."]
[]
[]
[{"$nulls":5},{"$f":"IF(AND($F$9=\"Kotryna\",$G$9=935),\"Puiku!\",\" \")","v":" "}]
[{"$nulls":5},"Eilučių žymos","Suma iš Suma"]
[{"$nulls":5},"Tėtis",{"v":2000,"d":"2,000 EUR"}]
[{"$nulls":5},"Sportas",{"v":1000,"d":"1,000 EUR"}]
[{"$nulls":5},"Lėktuvo bilieto kaina",{"v":500,"d":"500 EUR"}]
[{"$nulls":5},"Mokesčiai",{"v":500,"d":"500 EUR"}]
[{"$nulls":5},"Kotryna",{"v":935,"d":"935 EUR"}]
[{"$nulls":5},"Bilietai",{"v":125,"d":"125 EUR"}]
[{"$nulls":5},"Drabužiai",{"v":125,"d":"125 EUR"}]
[{"$nulls":5},"Elektroniniai prietaisai",{"v":125,"d":"125 EUR"}]
[{"$nulls":5},"Knygos",{"v":250,"d":"250 EUR"}]
[{"$nulls":5},"Muzika",{"v":20,"d":"20 EUR"}]
[{"$nulls":5},"Muzikos pamokos",{"v":250,"d":"250 EUR"}]
[{"$nulls":5},"Parkavimas",{"v":20,"d":"20 EUR"}]
[{"$nulls":5},"Restoranai",{"v":20,"d":"20 EUR"}]
[{"$nulls":5},"Mama",{"v":1427,"d":"1,427 EUR"}]
[{"$nulls":5},"Automobilio draudimas",{"v":74,"d":"74 EUR"}]
[{"$nulls":5},"Būsto draudimas",{"v":235,"d":"235 EUR"}]
[{"$nulls":5},"Dantų priežiūra",{"v":235,"d":"235 EUR"}]
[{"$nulls":5},"Degalai",{"v":74,"d":"74 EUR"}]
[{"$nulls":5},"Elektra",{"v":70,"d":"70 EUR"}]
[{"$nulls":5},"Klubo mokesčiai",{"v":125,"d":"125 EUR"}]
[{"$nulls":5},"Maistas",{"v":470,"d":"470 EUR"}]
[{"$nulls":5},"Medicininės išlaidos",{"v":74,"d":"74 EUR"}]
[{"$nulls":5},"Sveikatos draudimas",{"v":70,"d":"70 EUR"}]
[{"$nulls":5},"Bendroji suma",{"v":4362,"d":"4,362 EUR"}]
{"$rows_empty":68}
[null,"Data","Pirkėjas","Tipas","Suma"]
[null,"2017-01-17","Tėtis","Sportas",{"v":1000,"d":"1,000 EUR"}]
[null,"2017-01-17","Tėtis","Lėktuvo bilieto kaina",{"v":500,"d":"500 EUR"}]
[null,"2017-01-17","Tėtis","Mokesčiai",{"v":500,"d":"500 EUR"}]
[null,"2017-02-20","Kotryna","Muzika",{"v":20,"d":"20 EUR"}]
[null,"2017-02-25","Kotryna","Bilietai",{"v":125,"d":"125 EUR"}]
[null,"2017-01-21","Kotryna","Knygos",{"v":250,"d":"250 EUR"}]
[null,"2017-02-20","Kotryna","Restoranai",{"v":20,"d":"20 EUR"}]
[null,"2017-02-25","Kotryna","Drabužiai",{"v":125,"d":"125 EUR"}]
[null,"2017-01-21","Kotryna","Muzikos pamokos",{"v":250,"d":"250 EUR"}]
[null,"2017-02-20","Kotryna","Parkavimas",{"v":20,"d":"20 EUR"}]
[null,"2017-02-25","Kotryna","Elektroniniai prietaisai",{"v":125,"d":"125 EUR"}]
[null,"2017-01-01","Mama","Degalai",{"v":74,"d":"74 EUR"}]
[null,"2017-01-15","Mama","Maistas",{"v":235,"d":"235 EUR"}]
[null,"2017-01-21","Mama","Klubo mokesčiai",{"v":125,"d":"125 EUR"}]
[null,"2017-02-02","Mama","Maistas",{"v":235,"d":"235 EUR"}]
[null,"2017-01-01","Mama","Medicininės išlaidos",{"v":74,"d":"74 EUR"}]
[null,"2017-01-15","Mama","Elektra",{"v":70,"d":"70 EUR"}]
[null,"2017-02-02","Mama","Dantų priežiūra",{"v":235,"d":"235 EUR"}]
[null,"2017-01-01","Mama","Automobilio draudimas",{"v":74,"d":"74 EUR"}]
[null,"2017-01-15","Mama","Sveikatos draudimas",{"v":70,"d":"70 EUR"}]
[null,"2017-02-02","Mama","Būsto draudimas",{"v":235,"d":"235 EUR"}]

{"sheet":"16","index":16,"n_rows":121,"n_cols":7,"rows_kept":121}
["Taip pat galite sutraukti arba išplėsti visą antrą eilutės lauką, kad dar labiau supaprastintumėte „PivotTable“."]
["Štai ką daryti"]
["Pasirinkite „PivotTable“ duomenų diapazoną nuo F7 iki G31 langelio, tada paspauskite ALT + JT > S, kad sutrauktumėte visą grupę. Ir priešingai, paspaudus ALT + JT > L1, bus išplėsta visa grupė."]
["Norėdami toliau naudoti šią mokymo priemonę, paspauskite CTRL + PAGE DOWN. Norėdami pereiti į ankstesnį lapą, paspauskite CTRL + PAGE UP."]
[]
[{"$nulls":5},{"$f":"IF(AND($F$9=\"Kotryna\",$G$9=935),\"Taip ir toliau!\",\" \")","v":" "}]
[{"$nulls":5},"Eilučių žymos","Suma iš Suma"]
[{"$nulls":5},"Tėtis",{"v":2000,"d":"2,000 EUR"}]
[{"$nulls":5},"Sportas",{"v":1000,"d":"1,000 EUR"}]
[{"$nulls":5},"Lėktuvo bilieto kaina",{"v":500,"d":"500 EUR"}]
[{"$nulls":5},"Mokesčiai",{"v":500,"d":"500 EUR"}]
[{"$nulls":5},"Kotryna",{"v":935,"d":"935 EUR"}]
[{"$nulls":5},"Bilietai",{"v":125,"d":"125 EUR"}]
[{"$nulls":5},"Drabužiai",{"v":125,"d":"125 EUR"}]
[{"$nulls":5},"Elektroniniai prietaisai",{"v":125,"d":"125 EUR"}]
[{"$nulls":5},"Knygos",{"v":250,"d":"250 EUR"}]
[{"$nulls":5},"Muzika",{"v":20,"d":"20 EUR"}]
[{"$nulls":5},"Muzikos pamokos",{"v":250,"d":"250 EUR"}]
[{"$nulls":5},"Parkavimas",{"v":20,"d":"20 EUR"}]
[{"$nulls":5},"Restoranai",{"v":20,"d":"20 EUR"}]
[{"$nulls":5},"Mama",{"v":1427,"d":"1,427 EUR"}]
[{"$nulls":5},"Automobilio draudimas",{"v":74,"d":"74 EUR"}]
[{"$nulls":5},"Būsto draudimas",{"v":235,"d":"235 EUR"}]
[{"$nulls":5},"Dantų priežiūra",{"v":235,"d":"235 EUR"}]
[{"$nulls":5},"Degalai",{"v":74,"d":"74 EUR"}]
[{"$nulls":5},"Elektra",{"v":70,"d":"70 EUR"}]
[{"$nulls":5},"Klubo mokesčiai",{"v":125,"d":"125 EUR"}]
[{"$nulls":5},"Maistas",{"v":470,"d":"470 EUR"}]
[{"$nulls":5},"Medicininės išlaidos",{"v":74,"d":"74 EUR"}]
[{"$nulls":5},"Sveikatos draudimas",{"v":70,"d":"70 EUR"}]
[{"$nulls":5},"Bendroji suma",{"v":4362,"d":"4,362 EUR"}]
{"$rows_empty":68}
[null,"Data","Pirkėjas","Tipas","Suma"]
[null,"2017-01-17","Tėtis","Sportas",{"v":1000,"d":"1,000 EUR"}]
[null,"2017-01-17","Tėtis","Lėktuvo bilieto kaina",{"v":500,"d":"500 EUR"}]
[null,"2017-01-17","Tėtis","Mokesčiai",{"v":500,"d":"500 EUR"}]
[null,"2017-02-20","Kotryna","Muzika",{"v":20,"d":"20 EUR"}]
[null,"2017-02-25","Kotryna","Bilietai",{"v":125,"d":"125 EUR"}]
[null,"2017-01-21","Kotryna","Knygos",{"v":250,"d":"250 EUR"}]
[null,"2017-02-20","Kotryna","Restoranai",{"v":20,"d":"20 EUR"}]
[null,"2017-02-25","Kotryna","Drabužiai",{"v":125,"d":"125 EUR"}]
[null,"2017-01-21","Kotryna","Muzikos pamokos",{"v":250,"d":"250 EUR"}]
[null,"2017-02-20","Kotryna","Parkavimas",{"v":20,"d":"20 EUR"}]
[null,"2017-02-25","Kotryna","Elektroniniai prietaisai",{"v":125,"d":"125 EUR"}]
[null,"2017-01-01","Mama","Degalai",{"v":74,"d":"74 EUR"}]
[null,"2017-01-15","Mama","Maistas",{"v":235,"d":"235 EUR"}]
[null,"2017-01-21","Mama","Klubo mokesčiai",{"v":125,"d":"125 EUR"}]
[null,"2017-02-02","Mama","Maistas",{"v":235,"d":"235 EUR"}]
[null,"2017-01-01","Mama","Medicininės išlaidos",{"v":74,"d":"74 EUR"}]
[null,"2017-01-15","Mama","Elektra",{"v":70,"d":"70 EUR"}]
[null,"2017-02-02","Mama","Dantų priežiūra",{"v":235,"d":"235 EUR"}]
[null,"2017-01-01","Mama","Automobilio draudimas",{"v":74,"d":"74 EUR"}]
[null,"2017-01-15","Mama","Sveikatos draudimas",{"v":70,"d":"70 EUR"}]
[null,"2017-02-02","Mama","Būsto draudimas",{"v":235,"d":"235 EUR"}]

{"sheet":"17","index":17,"n_rows":107,"n_cols":13,"rows_kept":107}
["Taip pat gali būti daugiau nei vienas stulpelio laukas. Juos taip pat galima sutraukti arba išplėsti."]
["Šiame pavyzdyje „PivotTable“ yra langeliuose nuo B13 iki M19. Šiuo atveju stulpelių srityje yra kategorija Tipas, kuris apima maisto ir komunalinių paslaugų elementus."]
["PABANDYKITE TAI\nPasirinkite C14 langelyje esančią reikšmę Maistas, tada paspauskite ALT + JT > S, kad sutrauktumėte visą lauką. Paspaudus ALT + JT > L1, jis bus išplėstas."]
["Norėdami toliau naudoti šią mokymo priemonę, paspauskite CTRL + PAGE DOWN. Norėdami pereiti į ankstesnį lapą, paspauskite CTRL + PAGE UP."]
{"$rows_empty":7}
[null,null,{"$f":"IF(AND($C$16=779,$D$15=\"Sau\"),\"Labai gerai!\",\" \")","v":" "}]
[null,"Suma iš Suma","Stulpelių žymos"]
[null,null,"Maistas",{"$nulls":3},"Maistas Suma","Komunalinės paslaugos",{"$nulls":3},"Komunalinės paslaugos Suma","Bendroji suma"]
[null,"Eilučių žymos","Sau","Vas","Kov","Bal",null,"Sau","Vas","Kov","Bal"]
[null,"Tėtis",{"v":235,"d":"235 EUR"},{"v":235,"d":"235 EUR"},{"v":235,"d":"235 EUR"},{"v":74,"d":"74 EUR"},{"v":779,"d":"779 EUR"},{"$nulls":5},{"v":779,"d":"779 EUR"}]
[null,"Kotryna",{"v":74,"d":"74 EUR"},{"v":74,"d":"74 EUR"},{"v":125,"d":"125 EUR"},{"v":125,"d":"125 EUR"},{"v":398,"d":"398 EUR"},{"$nulls":5},{"v":398,"d":"398 EUR"}]
[null,"Mama",{"$nulls":5},{"v":1000,"d":"1,000 EUR"},{"v":1000,"d":"1,000 EUR"},{"v":20,"d":"20 EUR"},{"v":70,"d":"70 EUR"},{"v":2090,"d":"2,090 EUR"},{"v":2090,"d":"2,090 EUR"}]
[null,"Bendroji suma",{"v":309,"d":"309 EUR"},{"v":309,"d":"309 EUR"},{"v":360,"d":"360 EUR"},{"v":199,"d":"199 EUR"},{"v":1177,"d":"1,177 EUR"},{"v":1000,"d":"1,000 EUR"},{"v":1000,"d":"1,000 EUR"},{"v":20,"d":"20 EUR"},{"v":70,"d":"70 EUR"},{"v":2090,"d":"2,090 EUR"},{"v":3267,"d":"3,267 EUR"}]
{"$rows_empty":75}
[null,"Mėnuo","Pirkėjas","Tipas","Suma"]
[null,"Sau","Kotryna","Maistas",{"v":74,"d":"74 EUR"}]
[null,"Sau","Tėtis","Maistas",{"v":235,"d":"235 EUR"}]
[null,"Sau","Mama","Komunalinės paslaugos",{"v":1000,"d":"1,000 EUR"}]
[null,"Vas","Kotryna","Maistas",{"v":74,"d":"74 EUR"}]
[null,"Vas","Tėtis","Maistas",{"v":235,"d":"235 EUR"}]
[null,"Vas","Mama","Komunalinės paslaugos",{"v":1000,"d":"1,000 EUR"}]
[null,"Kov","Kotryna","Maistas",{"v":125,"d":"125 EUR"}]
[null,"Kov","Tėtis","Maistas",{"v":235,"d":"235 EUR"}]
[null,"Kov","Mama","Komunalinės paslaugos",{"v":20,"d":"20 EUR"}]
[null,"Bal","Kotryna","Maistas",{"v":125,"d":"125 EUR"}]
[null,"Bal","Tėtis","Maistas",{"v":74,"d":"74 EUR"}]
[null,"Bal","Mama","Komunalinės paslaugos",{"v":70,"d":"70 EUR"}]

{"sheet":"18","index":18,"n_rows":146,"n_cols":5,"rows_kept":146}
["Atkreipkite dėmesį: Jei reikia didesnio išsamumo, galima įtraukti daug daugiau eilutės laukų arba stulpelio laukų. Šiame pavyzdyje yra trys eilutės laukai."]
["Šiame pavyzdyje „PivotTable“ yra nuo D8 iki E29 langelio; jos D stulpelyje yra laukai Metų laikas, Pirkėjas ir Tipas, o E stulpelyje – Suma iš Suma."]
["SPECIALISTO PATARIMAS\nTik todėl, kad galite įtraukti daug laukų, nereiškia, kad tai naudinga. Šiame pavyzdyje tai veikia puikiai. Vis dėlto jei yra pernelyg daug laukų ir įtraukų, kitiems žmonėms „PivotTable“ gali būti sunku suprasti. "]
["Norėdami toliau naudoti šią mokymo priemonę, paspauskite CTRL + PAGE DOWN. Norėdami pereiti į ankstesnį lapą, paspauskite CTRL + PAGE UP."]
[]
[]
[]
[{"$nulls":3},"Eilučių žymos","Suma iš Suma"]
[{"$nulls":3},"Ruduo",{"v":5425,"d":"5,425 EUR"}]
[{"$nulls":3},"Mama",{"v":5425,"d":"5,425 EUR"}]
[{"$nulls":3},"Draudimas",{"v":1272,"d":"1,272 EUR"}]
[{"$nulls":3},"Komunalinės paslaugos",{"v":933,"d":"933 EUR"}]
[{"$nulls":3},"Nuoma",{"v":3220,"d":"3,220 EUR"}]
[{"$nulls":3},"Pavasaris",{"v":4760,"d":"4,760 EUR"}]
[{"$nulls":3},"Tėtis",{"v":4760,"d":"4,760 EUR"}]
[{"$nulls":3},"Draudimas",{"v":1040,"d":"1,040 EUR"}]
[{"$nulls":3},"Komunalinės paslaugos",{"v":1320,"d":"1,320 EUR"}]
[{"$nulls":3},"Nuoma",{"v":2400,"d":"2,400 EUR"}]
[{"$nulls":3},"Vasara",{"v":3473,"d":"3,473 EUR"}]
[{"$nulls":3},"Mama",{"v":3473,"d":"3,473 EUR"}]
[{"$nulls":3},"Draudimas",{"v":1080,"d":"1,080 EUR"}]
[{"$nulls":3},"Komunalinės paslaugos",{"v":1133,"d":"1,133 EUR"}]
[{"$nulls":3},"Nuoma",{"v":1260,"d":"1,260 EUR"}]
[{"$nulls":3},"Žiema",{"v":4100,"d":"4,100 EUR"}]
[{"$nulls":3},"Tėtis",{"v":4100,"d":"4,100 EUR"}]
[{"$nulls":3},"Draudimas",{"v":1030,"d":"1,030 EUR"}]
[{"$nulls":3},"Komunalinės paslaugos",{"v":1650,"d":"1,650 EUR"}]
[{"$nulls":3},"Nuoma",{"v":1420,"d":"1,420 EUR"}]
[{"$nulls":3},"Bendroji suma",{"v":17758,"d":"17,758 EUR"}]
{"$rows_empty":68}
[null,"Pirkėjas","Metų laikas","Tipas","Suma"]
[null,"Tėtis","Žiema","Draudimas",{"v":300,"d":"300 EUR"}]
[null,"Tėtis","Žiema","Nuoma",{"v":200,"d":"200 EUR"}]
[null,"Tėtis","Žiema","Komunalinės paslaugos",{"v":400,"d":"400 EUR"}]
[null,"Tėtis","Žiema","Draudimas",{"v":300,"d":"300 EUR"}]
[null,"Tėtis","Žiema","Nuoma",{"v":800,"d":"800 EUR"}]
[null,"Tėtis","Žiema","Komunalinės paslaugos",{"v":400,"d":"400 EUR"}]
[null,"Tėtis","Žiema","Draudimas",{"v":200,"d":"200 EUR"}]
[null,"Tėtis","Žiema","Nuoma",{"v":300,"d":"300 EUR"}]
[null,"Tėtis","Žiema","Komunalinės paslaugos",{"v":450,"d":"450 EUR"}]
[null,"Tėtis","Žiema","Draudimas",{"v":230,"d":"230 EUR"}]
[null,"Tėtis","Žiema","Nuoma",{"v":120,"d":"120 EUR"}]
[null,"Tėtis","Žiema","Komunalinės paslaugos",{"v":400,"d":"400 EUR"}]
[null,"Tėtis","Pavasaris","Draudimas",{"v":210,"d":"210 EUR"}]
[null,"Tėtis","Pavasaris","Nuoma",{"v":300,"d":"300 EUR"}]
[null,"Tėtis","Pavasaris","Komunalinės paslaugos",{"v":400,"d":"400 EUR"}]
[null,"Tėtis","Pavasaris","Draudimas",{"v":230,"d":"230 EUR"}]
[null,"Tėtis","Pavasaris","Nuoma",{"v":900,"d":"900 EUR"}]
[null,"Tėtis","Pavasaris","Komunalinės paslaugos",{"v":300,"d":"300 EUR"}]
[null,"Tėtis","Pavasaris","Draudimas",{"v":200,"d":"200 EUR"}]
[null,"Tėtis","Pavasaris","Nuoma",{"v":1000,"d":"1,000 EUR"}]
[null,"Tėtis","Pavasaris","Komunalinės paslaugos",{"v":220,"d":"220 EUR"}]
[null,"Tėtis","Pavasaris","Draudimas",{"v":400,"d":"400 EUR"}]
[null,"Tėtis","Pavasaris","Nuoma",{"v":200,"d":"200 EUR"}]
[null,"Tėtis","Pavasaris","Komunalinės paslaugos",{"v":400,"d":"400 EUR"}]
[null,"Mama","Vasara","Draudimas",{"v":100,"d":"100 EUR"}]
[null,"Mama","Vasara","Nuoma",{"v":30,"d":"30 EUR"}]
[null,"Mama","Vasara","Komunalinės paslaugos",{"v":123,"d":"123 EUR"}]
[null,"Mama","Vasara","Draudimas",{"v":300,"d":"300 EUR"}]
[null,"Mama","Vasara","Nuoma",{"v":350,"d":"350 EUR"}]
[null,"Mama","Vasara","Komunalinės paslaugos",{"v":230,"d":"230 EUR"}]
[null,"Mama","Vasara","Draudimas",{"v":120,"d":"120 EUR"}]
[null,"Mama","Vasara","Nuoma",{"v":640,"d":"640 EUR"}]
[null,"Mama","Vasara","Komunalinės paslaugos",{"v":530,"d":"530 EUR"}]
[null,"Mama","Vasara","Draudimas",{"v":560,"d":"560 EUR"}]
[null,"Mama","Vasara","Nuoma",{"v":240,"d":"240 EUR"}]
[null,"Mama","Vasara","Komunalinės paslaugos",{"v":250,"d":"250 EUR"}]
[null,"Mama","Ruduo","Draudimas",{"v":62,"d":"62 EUR"}]
[null,"Mama","Ruduo","Nuoma",{"v":600,"d":"600 EUR"}]
[null,"Mama","Ruduo","Komunalinės paslaugos",{"v":340,"d":"340 EUR"}]
[null,"Mama","Ruduo","Draudimas",{"v":205,"d":"205 EUR"}]
[null,"Mama","Ruduo","Nuoma",{"v":500,"d":"500 EUR"}]
[null,"Mama","Ruduo","Komunalinės paslaugos",{"v":403,"d":"403 EUR"}]
[null,"Mama","Ruduo","Draudimas",{"v":503,"d":"503 EUR"}]
[null,"Mama","Ruduo","Nuoma",{"v":2000,"d":"2,000 EUR"}]
[null,"Mama","Ruduo","Komunalinės paslaugos",{"v":140,"d":"140 EUR"}]
[null,"Mama","Ruduo","Draudimas",{"v":502,"d":"502 EUR"}]
[null,"Mama","Ruduo","Nuoma",{"v":120,"d":"120 EUR"}]
[null,"Mama","Ruduo","Komunalinės paslaugos",{"v":50,"d":"50 EUR"}]

{"sheet":"19","index":19,"n_rows":55,"n_cols":5,"rows_kept":55}
["Pasirengę toliau praktikuotis? Peržiūrėkite duomenis, pateiktus langeliuose nuo B7 iki E55. Kai būsite pasirengę, pereikite į paskesnį lapą ir galėsite išbandyti tai, ką iki šiol išmokote. "]
["Nebūtina peržiūrėti visų duomenų eilučių. Tiesiog peržiūrėkite 7 eilutėje esančius laukų pavadinimus. Paskesniame lape dirbsite su jais. "]
["Norėdami toliau naudoti šią mokymo priemonę, paspauskite CTRL + PAGE DOWN. Norėdami pereiti į ankstesnį lapą, paspauskite CTRL + PAGE UP."]
[]
[]
[]
[null,"Metų laikas","Pardavimo atstovas","Produktas","Parduota vienetų"]
[null,"Žiema","Audra","Apelsinai",300]
[null,"Žiema","Rimvydas","Greipfrutai",200]
[null,"Žiema","Adomas","Obuoliai",400]
[null,"Žiema","Audra","Bananai",300]
[null,"Žiema","Rimvydas","Apelsinai",800]
[null,"Žiema","Adomas","Greipfrutai",400]
[null,"Žiema","Audra","Obuoliai",200]
[null,"Žiema","Rimvydas","Bananai",300]
[null,"Žiema","Adomas","Apelsinai",450]
[null,"Žiema","Audra","Greipfrutai",230]
[null,"Žiema","Rimvydas","Obuoliai",120]
[null,"Žiema","Adomas","Bananai",400]
[null,"Pavasaris","Audra","Burokai",210]
[null,"Pavasaris","Rimvydas","Bulvės",300]
[null,"Pavasaris","Adomas","Salotos",400]
[null,"Pavasaris","Audra","Ridikėliai",230]
[null,"Pavasaris","Rimvydas","Burokai",900]
[null,"Pavasaris","Adomas","Bulvės",300]
[null,"Pavasaris","Audra","Salotos",200]
[null,"Pavasaris","Rimvydas","Ridikėliai",{"v":1000,"d":"1,000"}]
[null,"Pavasaris","Adomas","Burokai",220]
[null,"Pavasaris","Audra","Bulvės",400]
[null,"Pavasaris","Rimvydas","Salotos",200]
[null,"Pavasaris","Adomas","Ridikėliai",400]
[null,"Vasara","Audra","Šilauogės",100]
[null,"Vasara","Rimvydas","Braškės",30]
[null,"Vasara","Adomas","Vynuogės",123]
[null,"Vasara","Audra","Moliūgai",300]
[null,"Vasara","Rimvydas","Šilauogės",350]
[null,"Vasara","Adomas","Braškės",230]
[null,"Vasara","Audra","Vynuogės",120]
[null,"Vasara","Rimvydas","Moliūgai",640]
[null,"Vasara","Adomas","Šilauogės",530]
[null,"Vasara","Audra","Braškės",560]
[null,"Vasara","Rimvydas","Vynuogės",240]
[null,"Vasara","Adomas","Moliūgai",250]
[null,"Ruduo","Audra","Aguročiai",62]
[null,"Ruduo","Rimvydas","Cukinijos",600]
[null,"Ruduo","Adomas","Obuoliai",340]
[null,"Ruduo","Audra","Apelsinai",205]
[null,"Ruduo","Rimvydas","Aguročiai",500]
[null,"Ruduo","Adomas","Cukinijos",403]
[null,"Ruduo","Audra","Obuoliai",503]
[null,"Ruduo","Rimvydas","Apelsinai",{"v":2000,"d":"2,000"}]
[null,"Ruduo","Adomas","Aguročiai",140]
[null,"Ruduo","Audra","Cukinijos",502]
[null,"Ruduo","Rimvydas","Obuoliai",120]
[null,"Ruduo","Adomas","Apelsinai",50]

{"sheet":"20","index":20,"n_rows":17,"n_cols":11,"rows_kept":17}
["1. Šiame pavyzdyje „PivotTable“ sritis yra langeliuose nuo B12 iki C17. Eikite į bet kurį iš šių langelių. \n\n"]
["2. Paspauskite ALT + JT, L2, kad paleistumėte Suvestinės lentelės „PivotTable“ laukai sąrašą. Įvesties vieta bus ieškos teksto lauke: redaguoti „Įveskite ieškotinus žodžius“. Nieko neveskite, tik vieną kartą paspauskite TAB. PASTABA. Jei nepavyksta paleisti laukų sąrašo, dar kartą paspauskite ALT + JT, L2."]
["3. Norėdami pereiti į lauką Pardavimo atstovas, spauskite rodyklių klavišus. Norėdami į sritį Eilutės įtraukti lauką Pardavimo atstovas, paspauskite TARPO KLAVIŠĄ. Jei stulpelių srityje norite matyti pardavimo atstovo informaciją, klavišu Tab pereikite į eilučių srityje esantį lauką Pardavimo atstovas, tada paspauskite TARPO KLAVIŠĄ ir pasirinkite „Perkelti į stulpelių žymas“. Paspauskite klavišą ESC, kad išeitumėte iš „PivotTable“ laukų skydelio. "]
["4. Nustatykite, kas rudenį pardavė daugiausia produktų, tada K8 langelyje atlikite pasirinkimą. "]
["Norėdami toliau naudoti šią mokymo priemonę, paspauskite CTRL + PAGE DOWN. Norėdami pereiti į ankstesnį lapą, paspauskite CTRL + PAGE UP."]
[]
[{"$nulls":10},"Pasirinkite vieną:"]
[]
[{"$nulls":10},{"$f":"IF($K$8=\"Rimvydas\",\"Teisingai!\",IF($K$8=\"Adomas\",\"Bandykite iš naujo...\",IF($K$8=\"Audra\",\"Nevisai...\",IF($K$8=\" \",\" \",\" \"))))","v":" "}]
[]
[]
[null,"Eilučių žymos","Suma iš Parduota vienetų"]
[null,"Pavasaris",{"v":4760,"d":"4,760"}]
[null,"Ruduo",{"v":5425,"d":"5,425"}]
[null,"Vasara",{"v":3473,"d":"3,473"}]
[null,"Žiema",{"v":4100,"d":"4,100"}]
[null,"Bendroji suma",{"v":17758,"d":"17,758"}]

{"sheet":"21","index":21,"n_rows":14,"n_cols":10,"rows_kept":14}
["1. Spustelėkite B13 langelį, kad suaktyvintumėte „PivotTable“ pavadinimu „Suma iš Parduota vienetų“.\n\n"]
["2. Paspauskite ALT + JT, L2, kad paleistumėte Suvestinės lentelės „PivotTable“ laukai sąrašą. Įvesties vieta bus ieškos teksto lauke: redaguoti „Įveskite ieškotinus žodžius“. Nieko neveskite, tik vieną kartą paspauskite TAB. PASTABA. Jei nepavyksta paleisti laukų sąrašo, dar kartą paspauskite ALT + JT, L2."]
["3. Naudokite rodyklių ir TARPO klavišus, kad išplėstumėte pavyzdį į vertikalią „PivotTable“, kurios kairėje rodomi metų laikas, o po jais – įtraukti pardavimo atstovas. Norėdami uždaryti „PivotTable“ sritį Laukai, paspauskite klavišą ESC. "]
["Norėdami toliau naudoti šią mokymo priemonę, paspauskite CTRL + PAGE DOWN. Norėdami pereiti į ankstesnį lapą, paspauskite CTRL + PAGE UP."]
[{"$nulls":9},{"$f":"IF(AND(B$14=\"Ruduo\",$C$17=1272),\"Šaunu! Įtraukėte antrinį\",\" \")","v":" "}]
[{"$nulls":9},{"$f":"IF(AND(B$14=\"Ruduo\",$C$17=1272),\"eilutės lauką. Dabar\",\" \")","v":" "}]
[{"$nulls":9},{"$f":"IF(AND(B$14=\"Ruduo\",$C$17=1272),\"slinkite žemyn ir spustelėkite Pirmyn.\",\" \")","v":" "}]
[]
[]
[]
[]
[]
[null,"Suma iš Parduota vienetų"]
[null,{"v":17758,"d":"17,758"}]

{"sheet":"22","index":22,"n_rows":14,"n_cols":10,"rows_kept":14}
["1. Spustelėkite B13 langelį, kad suaktyvintumėte „PivotTable“ pavadinimu „Suma iš Parduota vienetų“."]
["2. Paspauskite ALT + JT, L2, kad paleistumėteSuvestinės lentelės „PivotTable“ laukai sąrašą. Įvesties vieta bus ieškos teksto lauke: redaguoti „Įveskite ieškotinus žodžius“. Nieko neveskite, tik vieną kartą paspauskite TAB. PASTABA. Jei nepavyksta paleisti laukų sąrašo, dar kartą paspauskite ALT + JT, L2"]
["3. Naudokite rodyklių ir TARPO klavišus, kad modifikuotumėte pavyzdį taip, kad kiekvienas produktas būtų rodomas atskiroje eilutėje, o kiekvienas metų laikas – atskirame stulpelyje."]
["Norėdami toliau naudoti šią mokymo priemonę, paspauskite CTRL + PAGE DOWN. Norėdami pereiti į ankstesnį lapą, paspauskite CTRL + PAGE UP.",{"$nulls":8},{"$f":"IF(AND($B$15=\"Aguročiai\",$G$28=483),\"Šaunu! Įtraukėte eilutės\",\" \")","v":" "}]
[{"$nulls":9},{"$f":"IF(AND($B$15=\"Aguročiai\",$G$28=483),\"lauką kairėje ir stulpelio\",\" \")","v":" "}]
[{"$nulls":9},{"$f":"IF(AND($B$15=\"Aguročiai\",$G$28=483),\"laukąsu keturiais naujais\",\" \")","v":" "}]
[{"$nulls":9},{"$f":"IF(AND($B$15=\"Aguročiai\",$G$28=483),\"stulpeliais. Slinkite žemyn\",\" \")","v":" "}]
[{"$nulls":9},{"$f":"IF(AND($B$15=\"Aguročiai\",$G$28=483),\"ir spustelėkite Pirmyn\",\" \")","v":" "}]
[]
[]
[]
[]
[null,"Suma iš Parduota vienetų"]
[null,{"v":17758,"d":"17,758"}]

{"sheet":"23","index":23,"n_rows":16,"n_cols":18,"rows_kept":16}
["1. Spustelėkite B13 langelį, kad suaktyvintumėte „PivotTable“ pavadinimu „Suma iš Parduota vienetų“.\n\n"]
["2. Paspauskite ALT + JT, L2, kad paleistumėte Suvestinės lentelės „PivotTable“ laukai sąrašą. Įvesties vieta bus ieškos teksto lauke: redaguoti „Įveskite ieškotinus žodžius“. Nieko neveskite, tik vieną kartą paspauskite TAB. PASTABA. Jei nepavyksta paleisti laukų sąrašo, dar kartą paspauskite ALT + JT, L2."]
["3. Naudokite Tab, rodyklių ir TARPO klavišus, kad modifikuotumėte pavyzdį taip, kad kairėje būtų rodomi pardavimo atstovai, o po jais – įtraukti metų laikai."]
["Norėdami toliau naudoti šią mokymo priemonę, paspauskite CTRL + PAGE DOWN. Norėdami pereiti į ankstesnį lapą, paspauskite CTRL + PAGE UP."]
[{"$nulls":9},{"$f":"IF(AND($B$14=\"Adomas\",$C$14=5036),\"Šaunu! Dabar duomenis\",\" \")","v":" "}]
[{"$nulls":9},{"$f":"IF(AND($B$14=\"Adomas\",$C$14=5036),\"perskaityti lengviau. Slinkite\",\" \")","v":" "}]
[{"$nulls":9},{"$f":"IF(AND($B$14=\"Adomas\",$C$14=5036),\"žemyn ir spustelėkite Pirmyn\",\" \")","v":" "}]
[]
[]
[]
[]
[]
[null,null,"Stulpelių žymos"]
[null,null,"Adomas",{"$nulls":3},"Adomas Suma","Rimvydas",{"$nulls":3},"Rimvydas Suma","Audra",{"$nulls":3},"Audra Suma","Bendroji suma"]
[null,null,"Ruduo","Pavasaris","Vasara","Žiema",null,"Ruduo","Pavasaris","Vasara","Žiema",null,"Ruduo","Pavasaris","Vasara","Žiema"]
[null,"Suma iš Parduota vienetų",933,{"v":1320,"d":"1,320"},{"v":1133,"d":"1,133"},{"v":1650,"d":"1,650"},{"v":5036,"d":"5,036"},{"v":3220,"d":"3,220"},{"v":2400,"d":"2,400"},{"v":1260,"d":"1,260"},{"v":1420,"d":"1,420"},{"v":8300,"d":"8,300"},{"v":1272,"d":"1,272"},{"v":1040,"d":"1,040"},{"v":1080,"d":"1,080"},{"v":1030,"d":"1,030"},{"v":4422,"d":"4,422"},{"v":17758,"d":"17,758"}]

{"sheet":"24","index":24,"n_rows":14,"n_cols":9,"rows_kept":14}
["1. Spustelėkite B13 langelį, kad suaktyvintumėte „PivotTable“ pavadinimu „Suma iš Parduota vienetų“."]
["2. Paspauskite ALT + JT, L2, kad paleistumėte „PivotTable“ laukų sąrašą. Įvesties vieta bus ieškos teksto lauke: redaguoti „Įveskite ieškotinus žodžius“. Nieko neveskite, tik vieną kartą paspauskite TAB. PASTABA. Jei nepavyksta paleisti laukų sąrašo, dar kartą paspauskite ALT + JT, L2."]
["3. Naudokite Tab, rodyklių ir TARPO klavišus, kad modifikuotumėte pavyzdį taip, kad kiekvienas pardavimo atstovas turėtų atskirą stulpelio lauką, kai metų laikai yra kairėje, o po jais – įtraukti produktai."]
["4. Pažymėkite I9 langelį ir pasirinkite, kiek greipfrutų Adomas pardavė žiemą. "]
["Norėdami toliau naudoti šią mokymo priemonę, paspauskite CTRL + PAGE DOWN. Norėdami pereiti į ankstesnį lapą, paspauskite CTRL + PAGE UP."]
[]
[]
[{"$nulls":8},"Pasirinkite vieną:"]
[]
[{"$nulls":8},{"$f":"IF($I$9=400,\"Teisingai!\",IF($I$9=530,\"Bandykite iš naujo...\",IF($I$9=123,\"Nevisai...\",\" \")))","v":" "}]
[]
[]
[null,"Suma iš Parduota vienetų"]
[null,{"v":17758,"d":"17,758"}]

{"sheet":"Sužinokite daugiau","index":25,"n_rows":8,"n_cols":1,"rows_kept":8}
["Puiku. Argi „PivotTable“ nėra puikios?"]
["Bet nesustokite! Dar yra daug dalykų, kuriuos galima atrasti..."]
["Daugiau informacijos apie „Pivot“\nPerskaitykite šį naudingą straipsnį apie „PivotTable“ lenteles ir sužinokite, ką dar galite padaryti."]
["Apie atnaujinimą\nPerskaitykite šį svarbų straipsnį, kad sužinotumėte, kaip atnaujinti „PivotTable“. "]
["Bendruomenė\nBendraukite su „Excel“ žinovais. Jie gali padėti jums, jūs galite padėti jiems."]
[]
[]
[" "]